bitfinex-derivatives/quotes_ETHF0:USTF0_20250905
["timestamp","ask_amount","ask_price","bid_price","bid_amount"]
[1757030401992,0.2098,4298.6,4298.5,0.5426]
[1757030402186,3.4176,4299.3,4299.2,0.414]
[1757030402388,3.9318,4299.3,4299.2,0.7277]
[1757030402793,3.2078,4299.3,4299.2,0.7277]
[1757030402994,3.2078,4299.3,4299.0,0.1286]
[1757030402995,3.2078,4299.3,4298.5,0.1286]
[1757030403795,0.3172,4299.2,4298.5,0.1286]
[1757030403993,0.2098,4298.6,4298.5,0.5426]
[1757030404298,0.2098,4298.6,4298.5,0.8563]
[1757030404600,0.3172,4298.8,4297.0,0.1286]
[1757030404601,0.724,4298.1,4298.0,0.8563]
[1757030405088,0.964,4298.1,4298.0,0.8563]
[1757030406796,0.724,4298.1,4298.0,0.8563]
[1757030408593,0.4068,4298.1,4298.0,0.8563]
[1757030409099,0.2098,4298.1,4298.0,0.8563]
[1757030410096,0.2098,4298.2,4298.1,0.3137]
[1757030410295,0.2098,4298.2,4298.1,0.7277]
[1757030411000,0.724,4298.2,4298.1,0.7277]
[1757030411294,0.724,4298.2,4298.1,0.521]
[1757030411499,0.724,4298.2,4297.6,0.3137]
[1757030412098,3.6146,4297.7,4297.6,0.7277]
[1757030412297,3.9318,4297.7,4297.6,0.7277]
[1757030412496,3.4176,4297.7,4297.6,0.7277]
[1757030412698,3.9318,4297.7,4297.6,0.7277]
[1757030414794,3.9318,4297.7,4297.6,0.521]
[1757030415196,3.9318,4297.7,4297.1,0.3137]
[1757030415394,0.724,4297.2,4297.1,0.521]
[1757030415594,0.963,4297.2,4297.1,0.521]
[1757030415795,0.963,4297.2,4297.1,0.7277]
[1757030416389,0.963,4297.2,4296.6,0.3137]
[1757030416792,0.963,4297.2,4297.1,0.2073]
[1757030416994,0.963,4297.2,4297.1,0.521]
[1757030417503,0.963,4297.2,4297.1,0.7277]
[1757030418206,0.724,4297.2,4297.1,0.7277]
[1757030418398,0.963,4297.2,4297.1,0.7277]
[1757030419994,0.5391,4297.6,4297.5,0.1245]
[1757030420203,0.9483,4297.6,4297.5,0.3354]
[1757030420401,0.9483,4297.6,4297.5,0.8258]
[1757030421107,0.6482,4297.6,4297.5,0.8258]
[1757030421604,0.4457,4297.6,4297.5,0.8258]
[1757030422503,3.2078,4297.7,4297.5,0.8258]
[1757030422704,3.4468,4297.7,4297.6,0.7013]
[1757030423205,3.2078,4297.7,4297.6,0.7013]
[1757030423604,3.4145,4297.7,4297.6,0.7013]
[1757030424105,0.2067,4297.7,4297.6,0.7013]
[1757030424509,0.9483,4298.0,4297.9,0.4108]
[1757030424807,0.239,4298.4,4298.2,0.7013]
[1757030425000,0.239,4298.5,4298.4,0.7013]
[1757030425306,0.2067,4298.8,4298.7,0.7013]
[1757030425506,0.9483,4298.8,4298.7,0.7013]
[1757030426107,0.9483,4298.8,4298.0,3.3323]
[1757030426407,0.2067,4298.3,4298.2,0.7013]
[1757030427602,3.9171,4298.3,4298.2,0.5014]
[1757030427996,3.617,4298.3,4298.2,0.7013]
[1757030428203,0.239,4298.3,4298.2,0.7013]
[1757030428899,0.3001,4298.7,4298.2,0.7013]
[1757030429213,0.239,4298.6,4298.5,0.8258]
[1757030429508,0.4457,4298.6,4298.5,0.8258]
[1757030430310,0.9483,4298.6,4298.5,0.8258]
[1757030430507,0.9483,4298.6,4298.5,0.7013]
[1757030430913,0.7093,4298.6,4298.5,0.7013]
[1757030431114,0.9483,4298.6,4298.5,0.7013]
[1757030431609,0.3001,4298.2,4298.1,2.0726]
[1757030431916,0.9483,4298.2,4298.1,1.0976]
[1757030432212,0.9483,4298.2,4298.1,1.3881]
[1757030432409,0.7093,4298.2,4298.1,1.0976]
[1757030432613,0.9483,4298.2,4298.1,1.0976]
[1757030433712,0.6482,4298.2,4297.7,1.027]
[1757030434012,0.7093,4297.9,4297.8,0.5014]
[1757030436310,0.7093,4297.9,4297.8,0.7013]
[1757030437607,0.3001,4298.7,4298.2,0.7013]
[1757030437813,0.2067,4298.6,4298.5,0.5353]
[1757030438011,0.239,4298.6,4298.5,0.5353]
[1757030438414,0.239,4298.6,4298.5,0.8258]
[1757030438604,3.2078,4298.9,4298.5,0.5353]
[1757030438811,3.4145,4298.9,4298.8,0.4108]
[1757030439011,3.4145,4298.9,4298.8,0.7013]
[1757030439413,3.6535,4298.9,4298.8,0.7013]
[1757030439610,3.2078,4299.4,4299.0,0.1245]
[1757030439914,2.0526054,4301.7,4299.0,0.1245]
[1757030439915,0.7458,4299.8,4299.7,0.7013]
[1757030440117,0.4457,4299.8,4299.7,0.7013]
[1757030440618,0.2067,4299.8,4299.7,0.7013]
[1757030440816,3.2078,4299.9,4299.8,0.2905]
[1757030441017,3.2078,4299.9,4299.8,0.7013]
[1757030441512,3.2078,4300.4,4300.0,0.1245]
[1757030441822,3.9171,4300.4,4300.3,0.7013]
[1757030442124,4.1561,4300.4,4300.3,0.7013]
[1757030442308,3.9171,4300.4,4300.3,0.7013]
[1757030442515,4.1561,4300.4,4300.3,0.7013]
[1757030442911,3.6535,4300.4,4300.3,0.7013]
[1757030443117,3.5079,4300.9,4300.3,0.7013]
[1757030443426,3.5079,4300.9,4300.0,0.1245]
[1757030443427,0.7093,4300.8,4300.7,0.7013]
[1757030443617,0.9483,4300.8,4300.7,0.7013]
[1757030443915,0.4092,4300.8,4300.7,0.7013]
[1757030444120,0.6482,4300.8,4300.7,0.7013]
[1757030444514,0.4092,4300.8,4300.7,0.7013]
[1757030445020,0.9483,4300.8,4300.7,0.7013]
[1757030445322,0.9483,4300.8,4300.7,0.5014]
[1757030445520,0.3001,4300.7,4300.3,0.2905]
[1757030445717,0.7093,4300.4,4300.3,0.5014]
[1757030445915,0.9483,4300.4,4300.3,0.5014]
[1757030446418,0.9483,4300.4,4300.3,0.7013]
[1757030447423,0.6482,4300.4,4300.3,0.7013]
[1757030447723,0.2067,4300.4,4300.3,0.7013]
[1757030447924,0.9493,4300.4,4300.3,0.7013]
[1757030448129,0.6528,4300.4,4300.3,0.7013]
[1757030448423,0.2067,4300.4,4300.3,0.7013]
[1757030448623,0.239,4300.4,4300.3,0.4108]
[1757030448821,3.2078,4300.9,4300.5,0.1176]
[1757030449025,3.6465,4300.9,4300.8,0.4072]
[1757030449227,3.4075,4300.9,4300.8,0.7198]
[1757030449525,3.6465,4300.9,4300.8,0.7198]
[1757030449726,0.18855697,4301.3,4300.8,0.7198]
[1757030450023,0.9423,4301.2,4301.1,0.7198]
[1757030450822,0.1997,4301.2,4301.1,0.7198]
[1757030451027,0.4387,4301.2,4301.1,0.7198]
[1757030451429,0.6458,4301.2,4301.1,0.7198]
[1757030451820,0.9423,4301.2,4301.1,0.7198]
[1757030453030,0.7033,4301.2,4301.1,0.7198]
[1757030453226,0.9423,4301.2,4301.1,0.7198]
[1757030453624,0.7033,4301.2,4301.1,0.7198]
[1757030453821,0.9423,4301.2,4301.1,0.7198]
[1757030454026,3.2078,4301.4,4301.1,0.4072]
[1757030454225,0.239,4301.3,4301.2,0.3126]
[1757030454426,0.4387,4301.3,4301.2,0.7198]
[1757030455827,0.239,4301.3,4301.2,0.7198]
[1757030456223,0.4387,4301.3,4301.2,0.7198]
[1757030459227,3.2078,4301.4,4301.3,0.3126]
[1757030459532,3.4468,4301.4,4301.3,0.7198]
[1757030459722,3.2078,4301.4,4301.3,0.7198]
[1757030459924,3.4468,4301.4,4301.3,0.7198]
[1757030460324,3.6465,4301.4,4301.3,0.7198]
[1757030460521,0.2965,4302.0,4301.3,0.4072]
[1757030460833,3.9111,4303.1,4303.0,0.514]
[1757030461131,0.4962,4303.2,4303.1,0.2014]
[1757030461327,0.7033,4303.2,4302.5,0.1176]
[1757030461527,0.1997,4302.7,4302.6,0.7198]
[1757030461732,0.4387,4302.7,4302.6,0.7198]
[1757030462222,0.9423,4302.7,4302.6,0.7198]
[1757030462932,0.239,4302.7,4302.6,0.7198]
[1757030463124,3.2078,4303.3,4302.7,0.3126]
[1757030463324,0.4068,4303.3,4303.2,0.7198]
[1757030463523,0.4387,4303.3,4303.2,0.7198]
[1757030463725,3.5043,4303.8,4303.2,0.7198]
[1757030463726,3.2078,4303.8,4303.2,0.7198]
[1757030463924,3.2078,4303.8,4303.0,0.1176]
[1757030463925,0.7033,4303.6,4303.5,0.8374]
[1757030464732,0.1997,4303.6,4303.5,0.8374]
[1757030464930,0.239,4303.6,4303.5,0.8374]
[1757030465232,3.2078,4303.8,4303.7,0.4072]
[1757030465432,3.5043,4304.4,4303.8,0.3126]
[1757030465628,0.4387,4304.3,4304.2,0.2014]
[1757030465932,0.9423,4304.3,4304.2,0.514]
[1757030466232,3.2078,4304.4,4304.3,0.7198]
[1757030466830,0.2965,4305.0,4304.4,0.3126]
[1757030467127,0.7033,4305.0,4304.9,0.7198]
[1757030467631,1.0562,4305.0,4304.6,0.3126]
[1757030467820,1.0562,4305.0,4304.0,0.1176]
[1757030467821,1.0562,4305.0,4304.1,0.3126]
[1757030468026,0.1997,4304.2,4304.1,0.7198]
[1757030468427,3.2078,4304.8,4304.5,0.1176]
[1757030468634,3.2078,4305.3,4305.1,0.3126]
[1757030468829,3.4075,4305.3,4305.2,0.4072]
[1757030469030,4.1491,4305.3,4305.2,0.514]
[1757030469232,3.2078,4305.3,4305.2,0.7198]
[1757030469628,3.4075,4305.3,4305.2,0.7198]
[1757030469825,4.1491,4305.3,4304.5,0.4302]
[1757030470129,0.7033,4304.6,4304.5,0.514]
[1757030470329,0.9413,4304.6,4304.5,0.514]
[1757030470524,0.9413,4304.6,4303.8,3.2078]
[1757030470729,3.6146,4304.0,4303.0,3.3254]
[1757030470932,0.7033,4303.7,4303.6,0.514]
[1757030471324,0.7033,4303.7,4303.1,0.3126]
[1757030471530,0.7033,4303.2,4302.6,0.3126]
[1757030471726,0.1997,4303.1,4303.0,0.8374]
[1757030471929,0.6448,4303.1,4302.0,32.2036]
[1757030472138,0.6448,4303.1,4302.6,0.7198]
[1757030472139,0.7033,4302.7,4302.6,0.7198]
[1757030472328,4.1491,4302.7,4302.6,0.7198]
[1757030472529,0.9413,4302.7,4302.6,0.7198]
[1757030473228,0.6448,4302.7,4302.6,0.7198]
[1757030474141,0.4377,4302.7,4302.6,0.7198]
[1757030475029,0.6448,4302.7,4302.6,0.7198]
[1757030475232,0.6448,4302.7,4301.5,0.53601]
[1757030475233,0.4068,4302.2,4301.6,0.3126]
[1757030475428,0.6448,4302.1,4302.0,0.8374]
[1757030475635,0.6448,4302.1,4301.5,0.1176]
[1757030475829,0.6448,4302.1,4301.6,0.3126]
[1757030476029,0.6448,4302.1,4301.5,0.1176]
[1757030476231,0.9413,4302.1,4302.0,0.514]
[1757030477326,0.7033,4302.1,4302.0,0.514]
[1757030477636,3.4458,4302.8,4302.7,0.7198]
[1757030478030,0.4377,4302.8,4302.7,0.7198]
[1757030478636,0.6394,4302.8,4302.7,0.514]
[1757030478835,0.9445,4302.8,4302.5,0.1176]
[1757030479035,0.3051,4302.7,4302.6,0.321]
[1757030479236,3.2078,4303.3,4303.2,0.7338]
[1757030479938,3.4458,4303.3,4303.2,0.7338]
[1757030480439,3.4468,4303.3,4303.2,0.7338]
[1757030480838,3.2078,4303.3,4303.2,0.7338]
[1757030481032,3.6505,4303.3,4303.2,0.7338]
[1757030481540,3.2078,4304.1,4303.3,0.321]
[1757030481728,0.2047,4304.0,4303.9,0.7338]
[1757030481928,0.4427,4304.0,4303.9,0.7338]
[1757030482127,0.6444,4304.0,4303.9,0.7338]
[1757030482334,0.9495,4304.0,4303.9,0.7338]
[1757030482833,3.2078,4304.1,4304.0,0.1255]
[1757030483043,0.2047,4304.2,4304.1,0.7338]
[1757030483240,0.9495,4304.2,4304.1,0.5253]
[1757030483741,0.6444,4304.2,4304.1,0.7338]
[1757030483937,0.4064,4304.2,4304.1,0.7338]
[1757030484137,3.4125,4304.6,4304.5,0.1255]
[1757030484334,0.2047,4304.6,4304.5,0.8593]
[1757030484535,0.7115,4305.0,4304.9,0.2043]
[1757030484740,1.32467626,4305.0,4304.9,0.7338]
[1757030484940,0.4064,4304.7,4304.6,0.5253]
[1757030485238,0.6454,4304.7,4304.6,0.7338]
[1757030485539,3.2078,4305.2,4305.0,0.1255]
[1757030485742,0.2047,4305.2,4305.1,0.7338]
[1757030486040,0.4437,4305.2,4305.1,0.7338]
[1757030486837,0.3051,4305.6,4305.1,0.4128]
[1757030487041,0.67951204,4305.5,4305.4,0.321]
[1757030487235,0.239,4305.6,4305.4,0.7338]
[1757030487543,3.2078,4305.7,4305.6,0.321]
[1757030487744,3.6515,4305.7,4305.6,0.7338]
[1757030487935,4.83795745,4305.7,4305.6,0.5253]
[1757030488235,0.3051,4305.3,4305.2,0.7202]
[1757030488435,1.39115745,4305.3,4305.2,0.7202]
[1757030489140,0.7115,4305.3,4305.2,0.7202]
[1757030490238,0.4064,4304.6,4304.5,0.321]
[1757030490435,0.7115,4304.6,4304.5,0.321]
[1757030490631,1.39152828,4304.6,4304.5,0.321]
[1757030491341,1.39152828,4304.6,4304.5,0.5253]
[1757030492845,4.59932828,4304.6,4304.5,0.5253]
[1757030493440,3.9193,4304.6,4304.5,0.5253]
[1757030494247,4.59854175,4304.6,4304.5,0.5253]
[1757030494449,3.6142,4304.6,4304.2,0.321]
[1757030494649,0.4064,4304.3,4304.2,0.5253]
[1757030494849,0.4064,4304.3,4304.2,0.7338]
[1757030498351,0.2047,4304.3,4304.2,0.7338]
[1757030500741,0.4064,4304.3,4304.2,0.7338]
[1757030503252,0.2047,4304.3,4304.2,0.7338]
[1757030503451,3.9556,4304.6,4304.5,0.8593]
[1757030503751,4.1573,4304.6,4304.5,0.8593]
[1757030505450,3.9193,4304.6,4304.5,0.8593]
[1757030505655,4.1573,4304.6,4304.5,0.8593]
[1757030507356,3.9193,4304.6,4304.5,0.8593]
[1757030507656,3.8522,4304.6,4304.5,0.8593]
[1757030508751,0.6444,4304.6,4304.5,0.8593]
[1757030509150,0.4064,4304.6,4304.5,0.8593]
[1757030509350,0.6444,4304.6,4304.5,0.8593]
[1757030509549,0.9538,4304.6,4304.5,0.8593]
[1757030510564,0.7158,4304.6,4304.5,0.8593]
[1757030510966,0.9538,4304.6,4304.5,0.8593]
[1757030511260,0.1079,4304.5,4304.0,0.3]
[1757030511461,0.4127,4303.9,4303.8,0.3]
[1757030511654,0.4127,4303.9,4303.1,1.0293]
[1757030511857,0.7221,4303.2,4303.1,0.7293]
[1757030512160,0.9601,4303.2,4303.1,1.2289]
[1757030513065,0.9601,4303.2,4303.1,1.4238]
[1757030513568,3.4066,4303.7,4303.6,0.6945]
[1757030513753,3.6446,4303.7,4303.6,0.6945]
[1757030514066,4.1679,4303.7,4303.6,0.6945]
[1757030515565,3.8585,4303.7,4303.6,0.6945]
[1757030516454,4.1679,4303.7,4303.6,0.6945]
[1757030516965,3.9299,4303.7,4303.6,0.6945]
[1757030517160,0.9601,4303.7,4303.1,0.3]
[1757030517357,0.9601,4303.7,4303.6,0.1996]
[1757030517560,0.9601,4303.7,4303.6,0.6945]
[1757030518268,0.7221,4303.7,4303.6,0.6945]
[1757030518469,0.7221,4303.7,4303.6,1.4398]
[1757030518470,0.9601,4303.7,4303.6,1.4398]
[1757030520267,0.7221,4303.7,4303.6,1.4398]
[1757030520467,0.9601,4303.7,4303.6,1.4398]
[1757030520968,0.7221,4303.7,4303.6,1.4398]
[1757030521164,3.2078,4304.3,4304.2,0.6945]
[1757030521665,3.4066,4304.3,4304.2,0.6945]
[1757030521869,3.6205,4304.3,4304.2,0.6945]
[1757030522067,3.4066,4304.3,4304.2,0.6945]
[1757030522362,0.238,4304.7,4304.3,0.3]
[1757030522567,0.9601,4304.7,4304.6,0.6945]
[1757030523267,4.1679,4304.7,4304.1,0.3]
[1757030523660,4.1679,4304.7,4304.0,0.1271]
[1757030523661,4.1679,4304.7,4304.6,0.1996]
[1757030523867,4.1679,4304.7,4304.6,0.4996]
[1757030524270,3.9299,4304.7,4304.6,0.4996]
[1757030524469,4.1679,4304.7,4304.6,0.4996]
[1757030526170,4.1679,4304.7,4304.0,0.1271]
[1757030526367,0.23232,4304.6,4303.8,3.5078]
[1757030526562,0.4127,4303.9,4303.7,0.3]
[1757030526769,0.7221,4303.7,4303.6,0.7453]
[1757030527771,4.4127,4303.7,4302.8,1.352]
[1757030527969,3.2078,4303.5,4303.1,0.3]
[1757030528172,3.2078,4303.5,4303.0,0.3267]
[1757030528372,3.2078,4303.5,4303.2,0.1996]
[1757030528567,3.2078,4304.0,4303.1,0.3]
[1757030528876,3.2078,4304.0,4303.9,0.1996]
[1757030529175,3.4458,4304.0,4303.9,0.6945]
[1757030529577,3.4458,4304.0,4303.9,0.4996]
[1757030529773,3.4458,4304.0,4303.9,0.3]
[1757030530770,3.4458,4304.0,4303.5,0.8037]
[1757030531167,3.4458,4304.0,4303.8,0.3]
[1757030531369,3.4458,4304.0,4303.6,0.3]
[1757030531573,3.4458,4304.0,4303.7,0.3]
[1757030531869,3.2078,4304.0,4303.6,0.4996]
[1757030532074,3.2078,4304.0,4303.9,0.6945]
[1757030532272,3.2078,4304.5,4304.0,0.3267]
[1757030532475,3.2078,4304.5,4304.4,0.6945]
[1757030532670,3.4458,4304.5,4304.4,0.6945]
[1757030533269,3.2078,4304.5,4304.4,0.6945]
[1757030533469,3.4458,4304.5,4304.4,0.6945]
[1757030533877,3.2078,4304.5,4304.4,0.6945]
[1757030534077,3.4458,4304.5,4304.4,0.6945]
[1757030535078,3.4458,4304.5,4304.4,0.4996]
[1757030535877,3.4458,4304.5,4304.0,0.1271]
[1757030535878,3.4458,4304.5,4304.1,0.3]
[1757030536078,3.4458,4304.5,4304.2,0.3]
[1757030536275,3.4458,4304.5,4304.0,0.3267]
[1757030536477,3.4458,4304.5,4304.1,0.1996]
[1757030536872,3.4458,4304.5,4304.3,0.3]
[1757030537072,3.4458,4304.5,4304.1,0.1996]
[1757030537370,0.238,4304.4,4304.0,0.1271]
[1757030537571,0.238,4304.4,4304.1,0.3]
[1757030537772,0.0018,4304.2,4304.0,0.1271]
[1757030538078,0.2398,4304.2,4304.1,0.3195]
[1757030538280,0.2398,4304.2,4303.6,0.3195]
[1757030538481,3.2096,4303.7,4303.6,0.3195]
[1757030538773,3.4476,4303.7,4303.6,0.3195]
[1757030538974,3.4476,4303.7,4303.6,0.5166]
[1757030540582,3.4476,4303.7,4303.6,0.7278]
[1757030541579,3.2078,4304.4,4303.6,0.7278]
[1757030541878,3.2078,4304.4,4304.3,0.7278]
[1757030542279,3.2087,4304.4,4304.3,0.7278]
[1757030542680,3.2078,4304.4,4304.3,0.7278]
[1757030542885,0.238,4304.5,4304.3,0.4083]
[1757030543187,0.238,4304.5,4304.0,0.1247]
[1757030543188,3.2078,4305.2,4304.4,0.7278]
[1757030543385,0.238,4305.1,4305.0,0.1247]
[1757030543585,0.2389,4305.1,4305.0,0.1247]
[1757030543788,0.2398,4305.1,4305.0,0.6413]
[1757030543991,0.2398,4305.1,4305.0,0.4442]
[1757030544477,0.2398,4305.1,4304.6,0.3195]
[1757030544674,3.2096,4304.7,4304.6,0.3195]
[1757030544878,3.2096,4304.7,4304.6,0.5166]
[1757030545178,3.4476,4304.7,4304.6,0.7278]
[1757030546590,3.4467,4304.7,4304.6,0.7278]
[1757030547085,3.2078,4304.7,4304.6,0.7278]
[1757030547287,32.069,4305.9,4304.5,0.1247]
[1757030547288,0.0018,4304.6,4304.5,0.1247]
[1757030547482,0.2398,4304.6,4303.5,0.99093582]
[1757030547684,3.2096,4303.6,4303.5,0.86383582]
[1757030547990,3.3296,4303.6,4303.0,0.1247]
[1757030548183,3.2078,4303.1,4303.0,0.1247]
[1757030548378,3.2096,4303.1,4302.5,0.1247]
[1757030548582,0.0018,4302.9,4302.2,0.3195]
[1757030548783,0.238,4303.0,4301.8,0.3195]
[1757030548977,0.68171511,4302.9,4301.8,0.3195]
[1757030549178,0.91411511,4302.9,4301.8,0.3195]
[1757030549383,0.2324,4302.9,4301.8,0.3195]
[1757030549784,0.238,4302.9,4301.8,0.3195]
[1757030550190,0.239,4302.9,4302.8,1.051]
[1757030550389,0.238,4302.9,4301.8,0.3195]
[1757030550591,3.2078,4302.0,4301.9,0.8292]
[1757030550890,3.4458,4302.0,4301.9,1.1487]
[1757030551092,32.25614601,4304.0,4302.0,0.1247]
[1757030551093,3.2078,4302.6,4302.0,0.1247]
[1757030551285,0.238,4302.5,4302.0,0.1247]
[1757030551488,0.238,4302.5,4302.1,0.3195]
[1757030551684,0.238,4302.5,4302.0,0.1247]
[1757030552378,0.238,4302.5,4302.1,0.3195]
[1757030552792,0.238,4302.5,4302.0,0.1247]
[1757030552992,0.238,4302.5,4302.1,0.3195]
[1757030553185,0.238,4302.5,4302.0,0.3218]
[1757030553387,0.238,4302.5,4302.0,1.4516]
[1757030553589,0.238,4302.5,4302.1,0.3195]
[1757030553786,0.238,4302.5,4302.0,1.2545]
[1757030553991,3.2078,4302.1,4302.0,1.1298]
[1757030554296,3.4458,4302.1,4302.0,1.1298]
[1757030554696,7.4458,4302.1,4302.0,1.1298]
[1757030555790,7.4458,4302.1,4301.9,0.8292]
[1757030555993,3.2078,4302.1,4302.0,0.4442]
[1757030556295,3.4458,4302.1,4302.0,0.4442]
[1757030556694,3.4458,4302.1,4301.9,0.8292]
[1757030557601,3.4458,4302.1,4302.0,0.3195]
[1757030557900,3.4458,4302.1,4301.9,0.8292]
[1757030558098,0.238,4302.0,4301.9,0.8292]
[1757030559596,3.2078,4302.1,4302.0,0.8525]
[1757030559797,3.4458,4302.1,4302.0,0.8525]
[1757030560600,3.2078,4302.1,4302.0,0.8525]
[1757030560795,3.4458,4302.1,4302.0,0.8525]
[1757030563701,3.4458,4302.1,4302.0,0.4442]
[1757030564196,3.4458,4302.1,4302.0,0.6413]
[1757030564604,3.4458,4302.1,4302.0,0.8525]
[1757030565105,3.2078,4302.1,4302.0,0.8525]
[1757030565306,3.4458,4302.1,4302.0,0.8525]
[1757030568003,3.2078,4302.1,4302.0,0.8525]
[1757030568303,0.1162,4302.3,4302.2,0.3955]
[1757030568608,0.1162,4302.3,4302.2,0.7133]
[1757030570308,3.2078,4303.1,4303.0,0.8398]
[1757030570509,3.4458,4303.1,4303.0,0.8398]
[1757030571609,3.2078,4303.1,4303.0,0.8398]
[1757030573300,3.2078,4303.8,4303.0,0.522]
[1757030573508,3.2078,4303.8,4303.7,0.7133]
[1757030573707,3.4458,4303.8,4303.7,0.7133]
[1757030574805,0.238,4303.8,4303.7,0.7133]
[1757030575404,0.238,4304.2,4304.0,0.1265]
[1757030575602,3.3935,4304.6,4304.5,0.1265]
[1757030575814,3.3935,4304.6,4304.5,0.8398]
[1757030576115,3.6315,4304.6,4304.5,0.8398]
[1757030576413,3.8172,4304.6,4304.5,0.8398]
[1757030577008,3.3935,4304.6,4304.5,0.8398]
[1757030577204,3.8172,4304.6,4304.5,0.8398]
[1757030579914,3.8172,4304.6,4304.5,0.6443]
[1757030580120,3.8172,4304.6,4304.5,0.4443]
[1757030581215,3.8172,4304.6,4304.5,0.6443]
[1757030581711,3.8172,4304.6,4304.5,0.8398]
[1757030581915,3.2078,4304.6,4304.5,0.8398]
[1757030582520,0.238,4305.0,4304.9,0.3955]
[1757030582720,0.238,4305.0,4304.9,0.7133]
[1757030583417,0.4237,4305.0,4304.9,0.7133]
[1757030583819,0.238,4305.2,4305.0,0.1265]
[1757030584021,0.238,4305.3,4305.1,0.7133]
[1757030584229,0.238,4305.3,4305.1,0.3955]
[1757030584525,0.238,4305.3,4305.2,0.7133]
[1757030585123,0.4237,4305.3,4305.2,0.7133]
[1757030585323,0.3714,4305.3,4305.2,0.7133]
[1757030587328,3.2078,4305.5,4305.3,0.3178]
[1757030587528,0.3714,4305.4,4305.3,0.5178]
[1757030587828,0.4875,4305.4,4305.3,0.3178]
[1757030588027,0.4875,4304.7,4304.6,0.3178]
[1757030588716,0.3714,4304.7,4304.6,0.7133]
[1757030588921,3.2078,4304.9,4304.7,0.3178]
[1757030589125,3.3935,4304.9,4304.8,0.7133]
[1757030589328,3.5792,4304.9,4304.8,0.7133]
[1757030589529,0.3714,4304.7,4304.6,0.3178]
[1757030590033,0.3714,4304.7,4304.6,0.5178]
[1757030590729,3.4458,4304.9,4304.8,0.3955]
[1757030590936,3.2078,4304.9,4304.8,0.7133]
[1757030592526,0.6094,4305.4,4305.3,0.2]
[1757030592727,0.238,4305.4,4304.5,0.1265]
[1757030593033,0.1857,4304.6,4304.5,0.8398]
[1757030595133,3.2078,4305.0,4304.6,0.3178]
[1757030595327,3.3935,4305.0,4304.9,0.2]
[1757030595630,3.5792,4305.0,4304.9,0.3178]
[1757030595832,3.6953,4305.0,4304.9,0.3178]
[1757030596027,3.5792,4305.0,4304.5,0.1265]
[1757030596233,0.1161,4304.8,4304.6,0.3178]
[1757030596429,0.3714,4304.7,4304.6,1.7045]
[1757030596823,0.4875,4304.7,4304.6,1.1867]
[1757030597242,4.4875,4304.7,4304.6,1.1867]
[1757030597736,4.7255,4304.7,4304.6,1.1867]
[1757030599333,0.6094,4304.7,4304.6,1.1867]
[1757030599631,4.7254,4304.7,4304.6,1.0707]
[1757030599934,4.6094,4304.7,4303.6,0.293]
[1757030600131,3.2078,4304.4,4303.6,0.293]
[1757030600329,0.238,4304.3,4304.0,0.3237]
[1757030600527,0.238,4304.3,4304.1,0.2017]
[1757030600832,0.238,4304.3,4304.2,0.293]
[1757030601428,0.238,4304.3,4304.2,0.4947]
[1757030602732,3.2078,4304.4,4304.2,0.4078]
[1757030602930,3.2078,4304.4,4304.3,0.7008]
[1757030603236,3.4458,4304.4,4304.3,0.7008]
[1757030605033,3.4458,4304.4,4304.3,0.4947]
[1757030605229,3.4458,4304.4,4304.3,0.293]
[1757030607239,7.67812,4304.4,4303.8,1.2396]
[1757030607441,3.2078,4303.9,4303.8,1.2396]
[1757030607631,3.4458,4303.9,4303.8,1.2396]
[1757030607835,3.4458,4303.9,4303.6,0.293]
[1757030608437,3.4458,4303.9,4303.5,0.1265]
[1757030608742,3.2078,4303.9,4303.8,0.7008]
[1757030609041,3.4458,4303.9,4303.8,0.7008]
[1757030609542,3.4458,4303.9,4303.6,0.293]
[1757030610230,3.67816,4303.9,4303.1,0.293]
[1757030610436,3.2078,4303.2,4303.0,0.4195]
[1757030610640,0.238,4303.1,4303.0,0.4195]
[1757030610842,0.238,4303.1,4303.0,0.8273]
[1757030611237,3.2078,4303.2,4303.1,0.293]
[1757030611444,3.4458,4303.7,4303.6,0.7008]
[1757030612040,3.2078,4304.2,4304.1,0.293]
[1757030612233,3.4458,4304.2,4304.1,0.293]
[1757030612644,3.4458,4304.2,4304.1,0.4947]
[1757030613044,3.4458,4304.2,4304.1,0.293]
[1757030613743,3.4458,4304.2,4304.0,0.122]
[1757030613945,3.4458,4304.2,4304.0,0.415]
[1757030614139,3.4458,4304.2,4303.5,0.415]
[1757030614345,3.2078,4303.6,4303.5,0.6167]
[1757030614645,3.4458,4303.6,4303.5,0.8228]
[1757030615539,3.4458,4303.6,4303.5,0.415]
[1757030616840,3.4458,4303.6,4303.0,0.8829]
[1757030616841,7.4458,4303.6,4303.0,1.1759]
[1757030617043,3.2078,4303.1,4303.0,1.1759]
[1757030617242,3.4458,4303.1,4303.0,1.1759]
[1757030618848,3.4458,4303.1,4303.0,1.3776]
[1757030622949,3.4458,4303.1,4303.0,1.5837]
[1757030623145,3.2078,4303.1,4303.0,1.5837]
[1757030623350,3.4458,4303.1,4303.0,1.5837]
[1757030625745,3.2078,4303.1,4303.0,1.5837]
[1757030628154,0.238,4303.2,4303.1,0.29]